fUST/lending_fUST_20250627
["ID","MTS","AMOUNT","RATE_DAILY","PERIOD"]
[368064546,1751014241576,-460.0,0.00019726,2]
[368064548,1751014241586,-556.41,0.00019726,2]
[368064550,1751014241596,-460.0,0.00019726,2]
[368064552,1751014241606,-2777.8,0.00019726,2]
[368064554,1751014241615,-183.40520964,0.00019726,2]
[368064556,1751014241625,-569.23,0.00019726,2]
[368064558,1751014241635,-1803.2,0.00019726,2]
[368064560,1751014241644,-460.0,0.00019726,2]
[368064562,1751014241653,-500.0,0.00019735,2]
[368064564,1751014241662,-500.0,0.00019735,2]
[368064566,1751014241672,-500.0,0.00019735,2]
[368064569,1751014241682,-500.0,0.00019735,2]
[368064571,1751014241692,-719.85,0.00019741,2]
[368064573,1751014241701,-612.0,0.00019742,2]
[368064575,1751014241711,-500.0,0.00019763,2]
[368064577,1751014241720,-500.0,0.0001978,2]
[368064579,1751014241730,-500.0,0.0001978,2]
[368064581,1751014241740,-500.0,0.0001978,2]
[368064583,1751014241749,-500.0,0.0001978,2]
[368064584,1751014241759,-502.55043655,0.0001978,2]
[368064586,1751014241768,-500.0,0.0001978,2]
[368064588,1751014241779,-500.0,0.0001978,2]
[368064590,1751014241788,-500.61707508,0.0001978,2]
[368064592,1751014241797,-503.72408779,0.00019781,2]
[368064594,1751014241806,-616.8228071,0.00019781,2]
[368064596,1751014241815,-1405.84948908,0.00019884,2]
[368064598,1751014241825,-7594.90095764,0.000199,2]
[368064600,1751014241835,-500.53695718,0.00019911,2]
[368064602,1751014241844,-500.0,0.00019911,2]
[368064604,1751014241853,-4005.91213836,0.00019914,2]
[368064606,1751014241862,-612.0,0.00019944,2]
[368064608,1751014241872,-500.0,0.00019944,2]
[368064610,1751014241881,-500.59761066,0.00019956,2]
[368064612,1751014241890,-500.0,0.00019975,2]
[368064614,1751014241900,-500.0,0.00019975,2]
[368064617,1751014241909,-612.0,0.00019987,2]
[368064618,1751014241919,-719.85,0.00019988,2]
[368064620,1751014241929,-500.0,0.00019989,2]
[368064622,1751014241938,-223.4,0.00019989,2]
[368064624,1751014241947,-1000.0,0.00019989,2]
[368064626,1751014241957,-1000.0,0.00019989,2]
[368064627,1751014241966,-1000.0,0.00019989,2]
[368064628,1751014241975,-1000.0,0.00019989,2]
[368064630,1751014241984,-1000.0,0.00019989,2]
[368064632,1751014241993,-1000.0,0.00019989,2]
[368064634,1751014242002,-240757.83445,0.00019989,2]
[368064636,1751014242013,-719.85,0.00019998,2]
[368064638,1751014242023,-719.85,0.00019998,2]
[368064640,1751014242032,-719.85,0.00019998,2]
[368064642,1751014242041,-719.85,0.00019998,2]
[368064644,1751014242050,-719.87853598,0.00019998,2]
[368064646,1751014242059,-460.0,0.00019999,2]
[368064648,1751014242069,-912.94,0.00019999,2]
[368064650,1751014242078,-460.0,0.00019999,2]
[368064652,1751014242087,-1000.0,0.00019999,2]
[368064654,1751014242097,-1000.0,0.00019999,2]
[368064656,1751014242106,-498.61682327,0.00019999,2]
[368064658,1751014242116,-460.0,0.00019999,2]
[368064660,1751014242125,-486.61,0.0002,2]
[368064663,1751014242140,-460.0,0.0002,2]
[368064665,1751014242154,-460.0,0.0002,2]
[368064667,1751014242164,-375.37868372,0.0002,2]
[368064669,1751014242174,-460.0,0.0002,2]
[368064671,1751014242184,-252.96231334,0.0002,2]
[368064673,1751014242194,-460.0,0.0002,2]
[368064676,1751014242204,-638.32,0.0002,2]
[368064678,1751014242213,-460.0,0.0002,2]
[368064680,1751014242223,-460.0,0.0002,2]
[368064682,1751014242232,-460.0,0.0002,2]
[368064684,1751014242242,-460.0,0.0002,2]
[368064686,1751014242252,-460.0,0.0002,2]
[368064688,1751014242262,-460.0,0.0002,2]
[368064690,1751014242271,-460.0,0.0002,2]
[368064692,1751014242280,-460.0,0.0002,2]
[368064694,1751014242290,-460.0,0.0002,2]
[368064696,1751014242304,-1700.78,0.0002,2]
[368064698,1751014242315,-1026.71,0.0002,2]
[368064700,1751014242324,-460.0,0.0002,2]
[368064702,1751014242333,-966.02,0.0002,2]
[368064704,1751014242343,-460.0,0.0002,2]
[368064706,1751014242353,-460.0,0.0002,2]
[368064708,1751014242362,-486.13,0.0002,2]
[368064710,1751014242372,-786.82,0.0002,2]
[368064712,1751014242382,-3869.97,0.0002,2]
[368064714,1751014242392,-1671.8,0.0002,2]
[368064716,1751014242401,-460.0,0.0002,2]
[368064718,1751014242411,-563.77,0.0002,2]
[368064720,1751014242421,-586.39,0.0002,2]
[368064722,1751014242431,-633.35,0.0002,2]
[368064724,1751014242440,-482.85,0.0002,2]
[368064726,1751014242449,-3453.57,0.0002,2]
[368064729,1751014242460,-460.0,0.0002,2]
[368064731,1751014242469,-1237.61,0.0002,2]
[368064733,1751014242478,-527.2197864,0.0002,2]
[368064735,1751014242487,-637.17,0.0002,2]
[368064737,1751014242497,-541.7,0.0002,2]
[368064739,1751014242506,-410.0,0.0002,2]
[368064741,1751014242516,-829.77,0.0002,2]
[368064742,1751014242525,-1994.54,0.0002,2]
[368064745,1751014242535,-460.0,0.0002,2]
[368064747,1751014242544,-3690.44,0.0002,2]
[368064749,1751014242554,-460.0,0.0002,2]
[368064751,1751014242564,-460.0,0.0002,2]
[368064753,1751014242573,-476.64,0.0002,2]
[368064755,1751014242583,-497.34,0.0002,2]
[368064757,1751014242594,-1155.72,0.0002,2]
[368064759,1751014242604,-460.0,0.0002,2]
[368064761,1751014242613,-460.0,0.0002,2]
[368064763,1751014242623,-486.11,0.0002,2]
[368064765,1751014242632,-2940.89,0.0002,2]
[368064767,1751014242641,-674.15,0.0002,2]
[368064769,1751014242651,-460.0,0.0002,2]
[368064771,1751014242661,-3831.23,0.0002,2]
[368064773,1751014242671,-460.0,0.0002,2]
[368064776,1751014242681,-653.95,0.0002,2]
[368064778,1751014242691,-545.9,0.0002,2]
[368064780,1751014242700,-7274.1,0.0002,2]
[368064782,1751014242709,-2330.44,0.0002,2]
[368064784,1751014242718,-460.0,0.0002,2]
[368064786,1751014242727,-460.0,0.0002,2]
[368064788,1751014242737,-460.0,0.0002,2]
[368064790,1751014242746,-460.0,0.0002,2]
[368064792,1751014242757,-300.56217115,0.0002,2]
[368064794,1751014242767,-460.0,0.0002,2]
[368064796,1751014242777,-2777.8,0.0002,2]
[368064798,1751014242787,-1803.2,0.0002,2]
[368064800,1751014242797,-460.0,0.0002,2]
[368064802,1751014242806,-612.0,0.00020013,2]
[368064804,1751014242816,-500.0,0.00020017,2]
[368064824,1751014242977,-501.79326718,0.00020017,2]
[368064826,1751014242987,-577.55484458,0.00020024,2]
[368064828,1751014242996,-500.0,0.00020032,2]
[368064831,1751014243007,-500.0,0.00020032,2]
[368064833,1751014243016,-500.0,0.00020094,2]
[368064835,1751014243025,-7594.9009575,0.00020107,2]
[368064837,1751014243035,-985.58544101,0.00020134,2]
[368064839,1751014243044,-2902.0,0.00020171,2]
[368064841,1751014243053,-1000.0,0.00020172,2]
[368064843,1751014243062,-500.0,0.00020215,2]
[368064845,1751014243072,-506.63485112,0.00020215,2]
[368064847,1751014243082,-502.16347564,0.00020215,2]
[368064849,1751014243091,-1000.0,0.00020215,2]
[368064851,1751014243100,-1000.0,0.00020271,2]
[368064853,1751014243109,-1000.0,0.00020271,2]
[368064855,1751014243118,-465.91563108,0.00020271,2]
[368064857,1751014243127,-1567.163924,0.00020272,2]
[368064859,1751014243136,-486.61,0.00020273,2]
[368064861,1751014243146,-460.0,0.00020273,2]
[368064863,1751014243155,-460.0,0.00020273,2]
[368064865,1751014243165,-912.94,0.00020273,2]
[368064867,1751014243174,-237.91254035,0.00020273,2]
[368064869,1751014243183,-460.0,0.00020273,2]
[368064872,1751014243193,-460.0,0.00020273,2]
[368064874,1751014243202,-460.0,0.00020273,2]
[368064876,1751014243211,-638.32,0.00020273,2]
[368064878,1751014243220,-460.0,0.00020273,2]
[368064880,1751014243230,-460.0,0.00020273,2]
[368064882,1751014243239,-460.0,0.00020273,2]
[368064884,1751014243248,-460.0,0.00020273,2]
[368064886,1751014243259,-460.0,0.00020273,2]
[368064888,1751014243268,-460.0,0.00020273,2]
[368064890,1751014243278,-460.0,0.00020273,2]
[368064892,1751014243288,-460.0,0.00020273,2]
[368064894,1751014243300,-1700.78,0.00020273,2]
[368064895,1751014243311,-1026.71,0.00020273,2]
[368064897,1751014243321,-460.0,0.00020273,2]
[368064899,1751014243331,-966.02,0.00020273,2]
[368064901,1751014243340,-460.0,0.00020273,2]
[368064903,1751014243350,-460.0,0.00020273,2]
[368064905,1751014243361,-486.13,0.00020273,2]
[368064907,1751014243373,-786.82,0.00020273,2]
[368064910,1751014243382,-277.73767652,0.00020273,2]
[368064913,1751014243392,-3869.97,0.00020273,2]
[368064916,1751014243401,-1671.8,0.00020273,2]
[368064920,1751014243411,-460.0,0.00020273,2]
[368064922,1751014243420,-563.77,0.00020273,2]
[368064924,1751014243430,-586.39,0.00020273,2]
[368064926,1751014243439,-633.35,0.00020273,2]
[368064928,1751014243448,-482.85,0.00020273,2]
[368064930,1751014243457,-3453.57,0.00020273,2]
[368064932,1751014243467,-460.0,0.00020273,2]
[368064934,1751014243476,-1237.61,0.00020273,2]
[368064936,1751014243486,-637.17,0.00020273,2]
[368064938,1751014243495,-541.7,0.00020273,2]
[368064940,1751014243506,-829.77,0.00020273,2]
[368064942,1751014243515,-1994.54,0.00020273,2]
[368064944,1751014243525,-460.0,0.00020273,2]
[368064946,1751014243534,-3690.44,0.00020273,2]
[368064948,1751014243544,-460.0,0.00020273,2]
[368064950,1751014243553,-497.34,0.00020273,2]
[368064952,1751014243563,-1155.72,0.00020273,2]
[368064954,1751014243572,-460.0,0.00020273,2]
[368064956,1751014243581,-460.0,0.00020273,2]
[368064958,1751014243591,-486.11,0.00020273,2]
[368064960,1751014243600,-2940.89,0.00020273,2]
[368064962,1751014243610,-674.15,0.00020273,2]
[368064964,1751014243619,-460.0,0.00020273,2]
[368064966,1751014243629,-3831.23,0.00020273,2]
[368064968,1751014243639,-460.0,0.00020273,2]
[368064970,1751014243648,-653.95,0.00020273,2]
[368064972,1751014243658,-545.9,0.00020273,2]
[368064974,1751014243667,-7274.1,0.00020273,2]
[368064977,1751014243677,-2330.44,0.00020273,2]
[368064979,1751014243686,-460.0,0.00020273,2]
[368064982,1751014243696,-467.85743595,0.00020273,2]
[368064984,1751014243707,-460.0,0.00020273,2]
[368064986,1751014243716,-460.0,0.00020273,2]
[368064988,1751014243725,-2777.8,0.00020273,2]
[368064990,1751014243735,-1803.2,0.00020273,2]
[368064992,1751014243744,-467.62,0.00020273,2]
[368064994,1751014243753,-160.0,0.00020275,2]
[368064995,1751014243763,-213.75309343,0.00020275,2]
[368064998,1751014243772,-160.0,0.00020275,2]
[368064999,1751014243782,-836.98798914,0.00020275,2]
[368065003,1751014243792,-230.26210603,0.00020275,2]
[368065005,1751014243801,-214.91804724,0.00020275,2]
[368065007,1751014243811,-847.04181546,0.00020275,2]
[368065009,1751014243820,-160.0,0.00020275,2]
[368065011,1751014243830,-524.32400359,0.00020277,2]
[368065013,1751014243839,-160.0,0.00020277,2]
[368065015,1751014243849,-12562.41216491,0.00020277,2]
[368065017,1751014243858,-160.0,0.00020277,2]
[368065019,1751014243868,-1003.72718248,0.00020283,2]
[368065021,1751014243878,-1061.98398793,0.00020283,2]
[368065023,1751014243888,-1000.0,0.00020283,2]
[368065025,1751014243897,-1017.33332786,0.00020283,2]
[368065027,1751014243906,-160.0,0.000203,2]
[368065029,1751014243916,-160.0,0.000203,2]
[368065030,1751014243925,-395.67986745,0.00020311,2]
[368065032,1751014243934,-7594.9009575,0.00020314,3]
[368065034,1751014243943,-500.98945024,0.00020328,2]
[368065036,1751014243954,-1000.0,0.00020328,2]
[368065038,1751014243964,-1000.0,0.00020328,2]
[368065040,1751014243973,-1000.0,0.00020328,2]
[368065042,1751014243983,-4005.91213836,0.00020476,2]
[368065043,1751014243992,-1000.0,0.0002052,2]
[368065044,1751014244001,-1000.0,0.0002052,2]
[368065045,1751014244013,-1000.0,0.0002052,2]
[368065046,1751014244023,-158.58637463,0.0002052,2]
[368065047,1751014244033,-29482.62195074,0.00020521,2]
[368065048,1751014244043,-213.75309343,0.00020521,3]
[368065049,1751014244053,-12562.41216491,0.00020521,3]
[368065050,1751014244063,-7594.9009575,0.00020521,3]
[368065051,1751014244073,-524.32400359,0.00020521,3]
[368065052,1751014244082,-486.61,0.00020547,2]
[368065053,1751014244093,-460.0,0.00020547,2]
[368065054,1751014244102,-460.0,0.00020547,2]
[368065055,1751014244112,-912.94,0.00020547,2]
[368065056,1751014244121,-321.41932496,0.00020547,2]
[368065057,1751014244131,-460.0,0.00020547,2]
[368065058,1751014244139,-460.0,0.00020547,2]
[368065059,1751014244149,-638.32,0.00020547,2]
[368065060,1751014244158,-460.0,0.00020547,2]
[368065061,1751014244168,-460.0,0.00020547,2]
[368065063,1751014244178,-460.0,0.00020547,2]
[368065066,1751014244188,-460.0,0.00020547,2]
[368065068,1751014244198,-460.0,0.00020547,2]
[368065070,1751014244208,-460.0,0.00020547,2]
[368065072,1751014244218,-460.0,0.00020547,2]
[368065074,1751014244228,-460.0,0.00020547,2]
[368065076,1751014244237,-1700.78,0.00020547,2]
[368065078,1751014244246,-1026.71,0.00020547,2]
[368065080,1751014244255,-460.0,0.00020547,2]
[368065082,1751014244265,-966.02,0.00020547,2]
[368065084,1751014244274,-460.0,0.00020547,2]
[368065086,1751014244284,-486.13,0.00020547,2]
[368065088,1751014244294,-786.82,0.00020547,2]
[368065090,1751014244305,-3869.97,0.00020547,2]
[368065093,1751014244314,-1671.8,0.00020547,2]
[368065096,1751014244324,-460.0,0.00020547,2]
[368065098,1751014244335,-563.77,0.00020547,2]
[368065100,1751014244346,-586.39,0.00020547,2]
[368065102,1751014244356,-633.35,0.00020547,2]
[368065104,1751014244365,-482.85,0.00020547,2]
[368065106,1751014244377,-3453.57,0.00020547,2]
[368065108,1751014244388,-460.0,0.00020547,2]
[368065110,1751014244397,-1237.61,0.00020547,2]
[368065112,1751014244407,-637.17,0.00020547,2]
[368065114,1751014244417,-541.7,0.00020547,2]
[368065116,1751014244426,-829.77,0.00020547,2]
[368065118,1751014244437,-1994.54,0.00020547,2]
[368065120,1751014244446,-460.0,0.00020547,2]
[368065122,1751014244456,-3690.44,0.00020547,2]
[368065124,1751014244466,-460.0,0.00020547,2]
[368065126,1751014244475,-497.34,0.00020547,2]
[368065128,1751014244485,-1155.72,0.00020547,2]
[368065130,1751014244495,-460.0,0.00020547,2]
[368065132,1751014244504,-460.0,0.00020547,2]
[368065134,1751014244515,-486.11,0.00020547,2]
[368065136,1751014244524,-2940.89,0.00020547,2]
[368065138,1751014244533,-674.15,0.00020547,2]
[368065140,1751014244543,-460.0,0.00020547,2]
[368065142,1751014244552,-3831.23,0.00020547,2]
[368065144,1751014244561,-460.0,0.00020547,2]
[368065146,1751014244570,-653.95,0.00020547,2]
[368065148,1751014244579,-545.9,0.00020547,2]
[368065150,1751014244589,-7274.1,0.00020547,2]
[368065152,1751014244598,-2330.44,0.00020547,2]
[368065154,1751014244608,-460.0,0.00020547,2]
[368065156,1751014244617,-460.0,0.00020547,2]
[368065158,1751014244627,-460.0,0.00020547,2]
[368065160,1751014244636,-2777.8,0.00020547,2]
[368065162,1751014244645,-1803.2,0.00020547,2]
[368065164,1751014244655,-847.04181546,0.0002059,3]
[368065166,1751014244665,-4662.34,0.000206,2]
[368065167,1751014244674,-366.1147399,0.0002063,2]
[368065169,1751014244683,-366.1147399,0.0002063,2]
[368065171,1751014244693,-7594.9009575,0.00020728,3]
[368065173,1751014244702,-151.0,0.000208,4]
[368065175,1751014244712,-486.61,0.00020821,2]
[368065177,1751014244722,-460.0,0.00020821,2]
[368065179,1751014244732,-440.0,0.00020821,2]
[368065181,1751014244741,-912.94,0.00020821,2]
[368065183,1751014244750,-460.0,0.00020821,2]
[368065185,1751014244759,-460.0,0.00020821,2]
[368065187,1751014244769,-638.32,0.00020821,2]
[368065189,1751014244778,-460.0,0.00020821,2]
[368065191,1751014244788,-460.0,0.00020821,2]
[368065193,1751014244798,-460.0,0.00020821,2]
[368065195,1751014244807,-460.0,0.00020821,2]
[368065197,1751014244816,-460.0,0.00020821,2]
[368065199,1751014244826,-460.0,0.00020821,2]
[368065201,1751014244840,-460.0,0.00020821,2]
[368065203,1751014244849,-1700.78,0.00020821,2]
[368065205,1751014244859,-1026.71,0.00020821,2]
[368065207,1751014244868,-460.0,0.00020821,2]
[368065209,1751014244878,-966.02,0.00020821,2]
[368065211,1751014244887,-460.0,0.00020821,2]
[368065213,1751014244897,-486.13,0.00020821,2]
[368065215,1751014244907,-786.82,0.00020821,2]
[368065217,1751014244916,-3869.97,0.00020821,2]
[368065219,1751014244926,-1671.8,0.00020821,2]
[368065221,1751014244935,-460.0,0.00020821,2]
[368065223,1751014244945,-563.77,0.00020821,2]
[368065225,1751014244955,-586.39,0.00020821,2]
[368065227,1751014244965,-633.35,0.00020821,2]
[368065229,1751014244976,-482.85,0.00020821,2]
[368065231,1751014244986,-3453.57,0.00020821,2]
[368065233,1751014244995,-460.0,0.00020821,2]
[368065235,1751014245005,-1237.61,0.00020821,2]
[368065237,1751014245015,-637.17,0.00020821,2]
[368065239,1751014245024,-541.7,0.00020821,2]
[368065241,1751014245034,-829.77,0.00020821,2]
[368065243,1751014245043,-1994.54,0.00020821,2]
[368065245,1751014245052,-460.0,0.00020821,2]
[368065247,1751014245062,-3690.44,0.00020821,2]
[368065249,1751014245072,-460.0,0.00020821,2]
[368065251,1751014245081,-497.34,0.00020821,2]
[368065252,1751014245090,-1155.72,0.00020821,2]
[368065254,1751014245100,-460.0,0.00020821,2]
[368065256,1751014245108,-460.0,0.00020821,2]
[368065258,1751014245118,-486.11,0.00020821,2]
[368065260,1751014245127,-674.15,0.00020821,2]
[368065261,1751014245136,-2940.89,0.00020821,2]
[368065263,1751014245146,-460.0,0.00020821,2]
[368065265,1751014245155,-3831.23,0.00020821,2]
[368065267,1751014245165,-460.0,0.00020821,2]
[368065269,1751014245175,-653.95,0.00020821,2]
[368065271,1751014245184,-545.9,0.00020821,2]
[368065273,1751014245193,-7274.1,0.00020821,2]
[368065275,1751014245202,-2330.44,0.00020821,2]
[368065277,1751014245212,-460.0,0.00020821,2]
[368065279,1751014245221,-460.0,0.00020821,2]
[368065281,1751014245231,-460.0,0.00020821,2]
[368065283,1751014245240,-2777.8,0.00020821,2]
[368065285,1751014245250,-1803.2,0.00020821,2]
[368065286,1751014245259,-153.0,0.00020822,2]
[368065289,1751014245269,-2902.0,0.00020829,2]
[368065290,1751014245279,-1000.0,0.00020831,2]
[368065292,1751014245288,-212.36870842,0.00020842,2]
[368065294,1751014245301,-1500.0,0.00020876,2]
[368065296,1751014245310,-5000.0,0.00020882,2]
[368065298,1751014245320,-500.0,0.00020882,2]
[368065300,1751014245329,-200.0,0.00020882,2]
[368065302,1751014245339,-500.0,0.00020882,2]
[368065304,1751014245348,-300.0,0.00020882,2]
[368065306,1751014245357,-500.0,0.00020882,2]
[368065308,1751014245366,-666.0,0.00020882,2]
[368065310,1751014245377,-500.0,0.00020882,2]
[368065311,1751014245386,-500.0,0.00020882,2]
[368065313,1751014245396,-151.0,0.00020882,2]
[368065315,1751014245405,-4290.37088558,0.00020882,2]
[368065317,1751014245417,-500.0,0.00020882,2]
[368065319,1751014245426,-500.0,0.00020882,2]
[368065321,1751014245436,-151.0,0.00020882,2]
[368065323,1751014245445,-500.0,0.00020882,2]
[368065325,1751014245454,-500.0,0.00020882,2]
[368065327,1751014245463,-151.0,0.00020882,2]
[368065329,1751014245473,-500.0,0.00020882,2]
[368065331,1751014245482,-500.0,0.00020882,2]
[368065333,1751014245491,-151.0,0.00020882,2]
[368065335,1751014245500,-151.0,0.00020882,2]
[368065337,1751014245510,-500.0,0.00020882,2]
[368065339,1751014245519,-500.0,0.00020882,2]
[368065341,1751014245528,-151.0,0.00020882,2]
[368065343,1751014245537,-207.4,0.00020882,2]
[368065344,1751014245547,-500.0,0.00020882,2]
[368065346,1751014245556,-500.0,0.00020882,2]
[368065348,1751014245565,-151.0,0.00020882,2]
[368065350,1751014245574,-500.0,0.00020882,2]
[368065352,1751014245583,-151.0,0.00020882,2]
[368065354,1751014245592,-500.0,0.00020882,2]
[368065366,1751014245704,-500.0,0.00020882,2]
[368065369,1751014245715,-151.0,0.00020882,2]
[368065371,1751014245725,-500.0,0.00020882,2]
[368065373,1751014245734,-500.0,0.00020882,2]
[368065374,1751014245743,-151.0,0.00020882,2]
[368065376,1751014245753,-500.0,0.00020882,2]
[368065378,1751014245763,-548.28375345,0.00020882,2]
[368065380,1751014245773,-151.0,0.00020882,2]
[368065382,1751014245781,-151.0,0.00020882,2]
[368065384,1751014245792,-151.0,0.00020882,2]
[368065386,1751014245801,-246.62150823,0.00020882,2]
[368065388,1751014245810,-511.88531974,0.00020882,2]
[368065390,1751014245819,-151.0,0.00020882,2]
[368065392,1751014245828,-25000.0,0.00020882,2]
[368065394,1751014245838,-5738.71660635,0.00020882,2]
[368065396,1751014245848,-420.0,0.00020899,2]
[368065398,1751014245857,-159.2663013,0.00020904,2]
[368065400,1751014245866,-153.0,0.00020904,2]
[368065402,1751014245875,-7594.9009575,0.00020934,4]
[368065404,1751014245885,-690.642,0.00020937,2]
[368065406,1751014245894,-577.55484458,0.00020969,2]
[368065408,1751014245904,-366.1147399,0.00020986,2]
[368065409,1751014245913,-716.195754,0.00020992,2]
[368065411,1751014245922,-153.72,0.00021,2]
[368065413,1751014245932,-151.0,0.00021,3]
[368065415,1751014245941,-1680.0,0.00021,2]
[368065417,1751014245951,-4005.91213836,0.00021038,2]
[368065419,1751014245961,-742.6949969,0.00021047,2]
[368065421,1751014245970,-486.61,0.00021095,2]
[368065423,1751014245980,-460.0,0.00021095,2]
[368065425,1751014245989,-912.94,0.00021095,2]
[368065427,1751014246000,-460.0,0.00021095,2]
[368065429,1751014246011,-460.0,0.00021095,2]
[368065431,1751014246020,-638.32,0.00021095,2]
[368065433,1751014246030,-460.0,0.00021095,2]
[368065435,1751014246039,-460.0,0.00021095,2]
[368065437,1751014246049,-460.0,0.00021095,2]
[368065439,1751014246058,-460.0,0.00021095,2]
[368065441,1751014246068,-460.0,0.00021095,2]
[368065443,1751014246077,-460.0,0.00021095,2]
[368065445,1751014246086,-460.0,0.00021095,2]
[368065447,1751014246096,-1700.78,0.00021095,2]
[368065449,1751014246106,-1026.71,0.00021095,2]
[368065451,1751014246115,-460.0,0.00021095,2]
[368065453,1751014246125,-966.02,0.00021095,2]
[368065455,1751014246134,-460.0,0.00021095,2]
[368065457,1751014246143,-486.13,0.00021095,2]
[368065458,1751014246153,-786.82,0.00021095,2]
[368065460,1751014246163,-3869.97,0.00021095,2]
[368065462,1751014246173,-1671.8,0.00021095,2]
[368065464,1751014246182,-460.0,0.00021095,2]
[368065466,1751014246193,-563.77,0.00021095,2]
[368065468,1751014246202,-586.39,0.00021095,2]
[368065470,1751014246212,-633.35,0.00021095,2]
[368065472,1751014246222,-482.85,0.00021095,2]
[368065474,1751014246232,-3453.57,0.00021095,2]
[368065476,1751014246242,-460.0,0.00021095,2]
[368065478,1751014246251,-1237.61,0.00021095,2]
[368065480,1751014246261,-637.17,0.00021095,2]
[368065482,1751014246270,-541.7,0.00021095,2]
[368065484,1751014246280,-829.77,0.00021095,2]
[368065486,1751014246290,-1994.54,0.00021095,2]
[368065488,1751014246302,-460.0,0.00021095,2]
[368065490,1751014246311,-3690.44,0.00021095,2]
[368065492,1751014246322,-460.0,0.00021095,2]
[368065494,1751014246331,-497.34,0.00021095,2]
[368065496,1751014246340,-1155.72,0.00021095,2]
[368065498,1751014246350,-460.0,0.00021095,2]
[368065499,1751014246359,-460.0,0.00021095,2]
[368065501,1751014246368,-486.11,0.00021095,2]
[368065503,1751014246378,-674.15,0.00021095,2]
[368065505,1751014246387,-2940.89,0.00021095,2]
[368065507,1751014246397,-460.0,0.00021095,2]
[368065509,1751014246406,-3831.23,0.00021095,2]
[368065511,1751014246415,-460.0,0.00021095,2]
[368065513,1751014246424,-653.95,0.00021095,2]
[368065515,1751014246433,-545.9,0.00021095,2]
[368065517,1751014246443,-7274.1,0.00021095,2]
[368065519,1751014246453,-2330.44,0.00021095,2]
[368065521,1751014246462,-460.0,0.00021095,2]
[368065523,1751014246471,-460.0,0.00021095,2]
[368065525,1751014246480,-460.0,0.00021095,2]
[368065527,1751014246490,-2777.8,0.00021095,2]
[368065529,1751014246499,-1803.2,0.00021095,2]
[368065531,1751014246508,-151.0,0.00021095,2]
[368065533,1751014246518,-770.17471178,0.00021102,2]
[368065535,1751014246527,-212.52548314,0.00021124,2]
[368065537,1751014246537,-7594.9009575,0.00021141,4]
[368065539,1751014246546,-177.888,0.00021144,2]
[368065541,1751014246555,-1318.844,0.00021144,2]
[368065543,1751014246564,-798.67117612,0.00021157,2]
[368065545,1751014246574,-151.0,0.000212,4]
[368065547,1751014246583,-151.0,0.000212,4]
[368065549,1751014246592,-828.22200964,0.00021212,2]
[368065551,1751014246602,-858.86622399,0.00021267,2]
[368065552,1751014246610,-160.0,0.000213,4]
[368065554,1751014246620,-161.67740917,0.000213,4]
[368065556,1751014246629,-205.13597147,0.00021304,2]